fUST/lending_fUST_20240608
["ID","MTS","AMOUNT","RATE_DAILY","PERIOD"]
[328787894,1717788425521,-174.0,0.0002408,35]
[328787895,1717788425544,-380.0,0.0002408,35]
[328787896,1717788425737,-237.18,0.0002408,35]
[328787897,1717788425759,-316.82,0.0002408,35]
[328787898,1717788426053,-554.0,0.0002408,35]
[328787899,1717788426235,-3595.3,0.0002408,35]
[328787900,1717788426297,-1302.5,0.00015,2]
[328787901,1717788426318,-157.08712556,0.00015787,2]
[328787902,1717788426339,-250.0,0.00015788,2]
[328787903,1717788426364,-11093.31738993,0.00015932,2]
[328787904,1717788426385,-10538.00320845,0.00015933,2]
[328787905,1717788426406,-3000.0,0.0001594,2]
[328787906,1717788426428,-24900.0,0.00016906,2]
[328787907,1717788426452,-570.54509744,0.00017052,2]
[328787908,1717788426472,-26671.13656926,0.00017152,2]
[328787909,1717788426496,-1858.5893851,0.00017157,2]
[328787910,1717788426516,-154.93802479,0.00018226,2]
[328787911,1717788426539,-4236.94913646,0.00018227,2]
[328787912,1717788426562,-167.20596199,0.000184,2]
[328787913,1717788426587,-570.54509737,0.00018459,2]
[328787914,1717788426607,-10018.74118028,0.00018496,2]
[328787915,1717788426631,-16400.37031594,0.00018497,2]
[328787916,1717788426651,-606.38712645,0.000185,2]
[328787917,1717788426671,-1695.23962869,0.000189,2]
[328787918,1717788426695,-500.0,0.00019178,2]
[328787919,1717788426723,-500.0,0.00019178,2]
[328787920,1717788426744,-500.0,0.00019178,2]
[328787921,1717788426766,-500.0,0.00019178,2]
[328787922,1717788426786,-173.2478507,0.00019178,2]
[328787923,1717788426808,-500.0,0.00019178,2]
[328787924,1717788426838,-160.00805462,0.00019178,2]
[328787925,1717788426858,-500.0,0.00019178,2]
[328787926,1717788426882,-500.0,0.00019178,2]
[328787927,1717788426904,-500.0,0.00019178,2]
[328787928,1717788426925,-500.0,0.00019178,2]
[328787929,1717788426950,-500.0,0.00019178,2]
[328787930,1717788426972,-500.0,0.00019178,2]
[328787931,1717788426994,-195.1074067,0.00019178,2]
[328787932,1717788427017,-500.0,0.00019178,2]
[328787933,1717788427038,-500.0,0.00019178,2]
[328787934,1717788427058,-622.19396505,0.00019178,2]
[328787935,1717788427082,-500.0,0.00019178,2]
[328787936,1717788427107,-500.0,0.00019178,2]
[328787937,1717788427132,-500.0,0.00019178,2]
[328787938,1717788427152,-536.77057468,0.00019178,2]
[328787939,1717788427174,-500.0,0.00019178,2]
[328787940,1717788427197,-370.48411741,0.00019178,2]
[328787941,1717788427219,-500.0,0.00019178,2]
[328787942,1717788427240,-500.0,0.00019178,2]
[328787943,1717788427264,-500.0,0.00019178,2]
[328787944,1717788427284,-500.0,0.00019178,2]
[328787945,1717788427305,-500.0,0.00019178,2]
[328787946,1717788427327,-500.0,0.00019178,2]
[328787947,1717788427352,-500.0,0.00019178,2]
[328787948,1717788427378,-500.0,0.00019178,2]
[328787949,1717788427483,-500.0,0.00019178,2]
[328787950,1717788427527,-500.0,0.00019178,2]
[328787951,1717788427552,-500.0,0.00019178,2]
[328787952,1717788427577,-500.0,0.00019178,2]
[328787953,1717788427604,-500.0,0.00019178,2]
[328787954,1717788427631,-500.0,0.00019178,2]
[328787955,1717788427653,-500.0,0.00019178,2]
[328787956,1717788427677,-500.0,0.00019178,2]
[328787957,1717788427700,-500.0,0.00019178,2]
[328787958,1717788427725,-500.0,0.00019178,2]
[328787959,1717788427756,-500.0,0.00019178,2]
[328787960,1717788427786,-500.0,0.00019178,2]
[328787961,1717788427813,-500.0,0.00019178,2]
[328787962,1717788427837,-500.0,0.00019178,2]
[328787963,1717788427862,-500.0,0.00019178,2]
[328787964,1717788427885,-500.0,0.00019178,2]
[328787965,1717788427911,-500.0,0.00019178,2]
[328787966,1717788427938,-500.0,0.00019178,2]
[328787967,1717788427963,-500.0,0.00019178,2]
[328787968,1717788427988,-500.0,0.00019178,2]
[328787969,1717788428014,-500.0,0.00019178,2]
[328787970,1717788428040,-500.0,0.00019178,2]
[328787971,1717788428065,-500.0,0.00019178,2]
[328787972,1717788428090,-500.0,0.00019178,2]
[328787973,1717788428117,-300.0,0.00019178,2]
[328787974,1717788428143,-500.0,0.00019178,2]
[328787975,1717788428168,-500.0,0.00019178,2]
[328787976,1717788428194,-500.0,0.00019178,2]
[328787977,1717788428219,-500.0,0.00019178,2]
[328787978,1717788428242,-500.0,0.00019178,2]
[328787979,1717788428268,-500.0,0.00019178,2]
[328787980,1717788428295,-500.0,0.00019178,2]
[328787981,1717788428322,-500.0,0.00019178,2]
[328787982,1717788428350,-500.0,0.00019178,2]
[328787983,1717788428375,-500.0,0.00019178,2]
[328787984,1717788428400,-500.0,0.00019178,2]
[328787985,1717788428426,-500.0,0.00019178,2]
[328787986,1717788428451,-500.0,0.00019178,2]
[328787987,1717788428472,-171.691387,0.00019178,2]
[328787988,1717788428496,-160.0,0.000192,2]
[328787989,1717788428517,-320.0,0.00019748,2]
[328787990,1717788428540,-252.4,0.0001976,3]
[328787991,1717788428562,-570.54509737,0.00019866,2]
[328787992,1717788428584,-489.0,0.00019908,2]
[328787993,1717788428604,-150.0,0.00019908,2]
[328787994,1717788428626,-931.88170639,0.0002,2]
[328787995,1717788428646,-1455.44491102,0.0002,3]
[328787996,1717788428667,-1171.23762489,0.0002,2]
[328787997,1717788431136,-666.1396982,0.00019177,2]
[328787998,1717788431156,-183.4334025,0.0002,2]
[328787999,1717788431177,-167.20596199,0.00020108,2]
[328788000,1717788431199,-252.4,0.00020266,3]
[328788001,1717788431219,-343.07821928,0.00020296,2]
[328788002,1717788431241,-13475.80399905,0.0002076,2]
[328788003,1717788431262,-252.4,0.00020773,5]
[328788004,1717788431283,-4548.47067898,0.00021,2]
[328788005,1717788433122,-2821.1067167,0.00021,2]
[328788006,1717788433144,-205.1978842,0.00021043,2]
[328788007,1717788433166,-205.1978842,0.00021043,2]
[328788008,1717788433188,-570.54509737,0.00021273,2]
[328788009,1717788433209,-252.4,0.00021279,5]
[328788010,1717788433231,-153.0,0.00021397,2]
[328788011,1717788433253,-153.0,0.00021397,2]
[328788012,1717788433274,-292.3309227,0.00021397,2]
[328788013,1717788433295,-292.3309227,0.00021397,2]
[328788014,1717788433315,-153.0,0.00021397,2]
[328788015,1717788433441,-4872.429581,0.000215,2]
[328788016,1717788433468,-205.1978842,0.00021644,2]
[328788017,1717788433488,-193.9880958,0.00021644,2]
[328788018,1717788433511,-205.1978842,0.00021671,2]
[328788019,1717788433534,-205.1978842,0.00021671,2]
[328788020,1717788433556,-156.19711528,0.00021696,3]
[328788021,1717788433578,-252.4,0.00021786,5]
[328788022,1717788433602,-151.0,0.00021786,5]
[328788023,1717788433628,-150.92453773,0.00021798,7]
[328788024,1717788433649,-3435.6210162,0.00021812,2]
[328788025,1717788433671,-190.4326803,0.00021812,2]
[328788026,1717788433691,-685.52037713,0.00021812,2]
[328788027,1717788433712,-186.7178797,0.00021812,2]
[328788028,1717788433734,-215.516539,0.00021812,2]
[328788029,1717788433755,-337.88840246,0.00021812,2]
[328788030,1717788433776,-157.2193746,0.00021812,2]
[328788031,1717788433797,-166.61634083,0.00021812,2]
[328788032,1717788433818,-2000.0,0.00021813,2]
[328788033,1717788433840,-621.53846895,0.00021813,2]
[328788034,1717788433860,-155.90323071,0.00021813,2]
[328788035,1717788433883,-298.15905011,0.00021813,2]
[328788036,1717788433903,-1982.90053047,0.00021815,2]
[328788037,1717788433923,-2148.70491174,0.00021815,2]
[328788038,1717788433948,-4649.6932424,0.00021816,7]
[328788039,1717788433968,-88888.0,0.00021816,3]
[328788040,1717788433989,-151.0,0.00021816,2]
[328788041,1717788434008,-151.0,0.00021816,2]
[328788042,1717788434029,-151.0,0.00021816,2]
[328788043,1717788434049,-151.0,0.00021816,2]
[328788044,1717788434069,-442.583746,0.00021816,2]
[328788045,1717788434090,-442.583746,0.00021816,2]
[328788046,1717788434110,-151.0,0.00021816,2]
[328788047,1717788434132,-151.0,0.00021816,2]
[328788048,1717788434151,-151.0,0.00021816,2]
[328788049,1717788434172,-151.0,0.00021816,2]
[328788050,1717788434193,-396.13241,0.00021816,2]
[328788051,1717788434220,-151.0,0.00021816,2]
[328788052,1717788434242,-396.13241,0.00021816,2]
[328788053,1717788434264,-151.0,0.00021816,2]
[328788054,1717788434285,-151.0,0.00021816,2]
[328788055,1717788434305,-151.0,0.00021816,2]
[328788056,1717788434325,-151.0,0.00021816,2]
[328788057,1717788434346,-151.0,0.00021816,2]
[328788058,1717788434368,-167.20596199,0.00021816,2]
[328788059,1717788434389,-151.0,0.00021816,2]
[328788060,1717788434410,-153.0,0.00021844,2]
[328788061,1717788434430,-153.0,0.00021844,2]
[328788062,1717788434487,-153.0,0.00021844,2]
[328788063,1717788434534,-153.0,0.00021844,2]
[328788064,1717788434579,-153.0,0.00021844,2]
[328788065,1717788434631,-153.0,0.00021844,2]
[328788066,1717788434691,-153.0,0.00021844,2]
[328788067,1717788434712,-153.0,0.00021844,2]
[328788068,1717788434734,-153.0,0.00021844,2]
[328788069,1717788434756,-205.1978842,0.00021863,2]
[328788070,1717788434777,-205.1978842,0.00021865,2]
[328788071,1717788434798,-205.1978842,0.00021865,2]
[328788072,1717788434820,-205.1978842,0.00021865,2]
[328788073,1717788434841,-205.1978842,0.00021865,2]
[328788074,1717788434863,-205.1978842,0.00021865,2]
[328788075,1717788434891,-205.1978842,0.00021865,2]
[328788076,1717788434913,-205.1978842,0.00021865,2]
[328788077,1717788434933,-205.1978842,0.00021865,2]
[328788078,1717788434953,-205.1978842,0.00021865,2]
[328788079,1717788434974,-205.1978842,0.00021865,2]
[328788080,1717788434995,-180.7218318,0.00021865,2]
[328788081,1717788435015,-180.25,0.000219,2]
[328788082,1717788435034,-492.0,0.000219,2]
[328788083,1717788435056,-200.26307181,0.00021909,2]
[328788084,1717788435077,-305.08452615,0.0002191,2]
[328788085,1717788435097,-4388.2799734,0.00021911,2]
[328788086,1717788435120,-30045.2138864,0.00021913,2]
[328788087,1717788435140,-14280.50948537,0.00021913,2]
[328788088,1717788435594,-292.3309227,0.00021397,2]
[328788089,1717788435623,-10117.1915583,0.00021913,2]
[328788090,1717788435644,-234.43671226,0.00021913,2]
[328788091,1717788435665,-58297.96841674,0.00021913,2]
[328788092,1717788446125,-461.84973382,0.00018822,2]
[328788093,1717788446147,-156.90252115,0.00021396,2]
[328788094,1717788446168,-153.0,0.00021397,2]
[328788095,1717788446188,-222.868002,0.00021816,2]
[328788096,1717788446208,-222.868002,0.00021816,2]
[328788097,1717788446229,-1302.5,0.00021892,2]
[328788098,1717788446248,-4989.52853249,0.00021912,2]
[328788099,1717788446268,-394.45621502,0.00021912,2]
[328788100,1717788446288,-24841.06333792,0.00021913,2]
[328788101,1717788446308,-151.415105,0.00021913,2]
[328788102,1717788446328,-151.0,0.00021913,2]
[328788103,1717788446347,-151.0,0.00021913,2]
[328788104,1717788446366,-151.0,0.00021913,2]
[328788105,1717788446387,-151.0,0.00021913,2]
[328788106,1717788446405,-151.0,0.00021913,2]
[328788107,1717788446424,-151.0,0.00021913,2]
[328788108,1717788446444,-151.0,0.00021913,2]
[328788109,1717788446464,-151.0,0.00021913,2]
[328788110,1717788446483,-151.0,0.00021913,2]
[328788111,1717788446506,-151.0,0.00021913,2]
[328788112,1717788446530,-301.532935,0.00021913,2]
[328788113,1717788446552,-301.532935,0.00021913,2]
[328788114,1717788446574,-301.532935,0.00021913,2]
[328788115,1717788446596,-301.532935,0.00021913,2]
[328788116,1717788446617,-151.0,0.00021913,2]
[328788117,1717788446636,-151.0,0.00021913,2]
[328788118,1717788446656,-151.0,0.00021913,2]
[328788119,1717788446677,-151.0,0.00021913,2]
[328788120,1717788446697,-155.392749,0.00021913,2]
[328788121,1717788446719,-155.392749,0.00021913,2]
[328788122,1717788446740,-155.392749,0.00021913,2]
[328788123,1717788446760,-155.392749,0.00021913,2]
[328788124,1717788446780,-204.363524,0.00021913,2]
[328788125,1717788446800,-151.0,0.00021913,2]
[328788126,1717788446820,-151.0,0.00021913,2]
[328788127,1717788446840,-151.0,0.00021913,2]
[328788128,1717788446860,-151.0,0.00021913,2]
[328788129,1717788446880,-151.0,0.00021913,2]
[328788130,1717788446901,-442.583746,0.00021913,2]
[328788131,1717788446921,-442.583746,0.00021913,2]
[328788132,1717788446943,-442.583746,0.00021913,2]
[328788133,1717788446964,-442.583746,0.00021913,2]
[328788134,1717788446984,-151.0,0.00021913,2]
[328788135,1717788447005,-151.0,0.00021913,2]
[328788136,1717788447025,-151.0,0.00021913,2]
[328788137,1717788447045,-151.0,0.00021913,2]
[328788138,1717788447170,-151.0,0.00021913,2]
[328788139,1717788447191,-151.0,0.00021913,2]
[328788140,1717788447211,-151.0,0.00021913,2]
[328788141,1717788447232,-396.13241,0.00021913,2]
[328788142,1717788447252,-396.13241,0.00021913,2]
[328788143,1717788447274,-151.0,0.00021913,2]
[328788144,1717788447295,-151.0,0.00021913,2]
[328788145,1717788447316,-396.13241,0.00021913,2]
[328788146,1717788447336,-396.13241,0.00021913,2]
[328788147,1717788447358,-151.0,0.00021913,2]
[328788148,1717788447380,-151.0,0.00021913,2]
[328788149,1717788447403,-151.0,0.00021913,2]
[328788150,1717788447423,-151.0,0.00021913,2]
[328788151,1717788447445,-151.0,0.00021913,2]
[328788152,1717788447465,-222.868002,0.00021913,2]
[328788153,1717788447486,-222.868002,0.00021913,2]
[328788154,1717788447508,-222.868002,0.00021913,2]
[328788155,1717788447530,-222.868002,0.00021913,2]
[328788156,1717788447551,-490.26718629,0.00021914,2]
[328788157,1717788447571,-7336.92547468,0.00021914,2]
[328788158,1717788447592,-1971.29134576,0.00021914,2]
[328788159,1717788447612,-710.4329038,0.00021914,2]
[328788160,1717788447634,-1901.0750489,0.00021914,2]
[328788161,1717788447653,-5294.38962615,0.00021914,7]
[328788162,1717788447673,-1458.44377682,0.00021914,3]
[328788163,1717788447694,-606.38712645,0.00021914,2]
[328788164,1717788447714,-243.61888985,0.00021914,2]
[328788165,1717788447734,-575.69890538,0.00021914,2]
[328788166,1717788447755,-163.02245069,0.00021915,2]
[328788167,1717788447775,-455.99341539,0.00021915,2]
[328788168,1717788447796,-62090.99528202,0.00021916,2]
[328788169,1717788447817,-1198.22916668,0.00021916,2]
[328788170,1717788447838,-151.0,0.00021916,2]
[328788171,1717788447861,-151.0,0.00021916,2]
[328788172,1717788447887,-301.532935,0.00021916,2]
[328788173,1717788447909,-301.532935,0.00021916,2]
[328788174,1717788447930,-151.0,0.00021916,2]
[328788175,1717788447950,-151.0,0.00021916,2]
[328788176,1717788447971,-155.392749,0.00021916,2]
[328788177,1717788447991,-155.392749,0.00021916,2]
[328788178,1717788448011,-151.0,0.00021916,2]
[328788179,1717788448032,-151.0,0.00021916,2]
[328788180,1717788448053,-442.583746,0.00021916,2]
[328788181,1717788448074,-442.583746,0.00021916,2]
[328788182,1717788448097,-151.0,0.00021916,2]
[328788183,1717788448118,-151.0,0.00021916,2]
[328788184,1717788448141,-151.0,0.00021916,2]
[328788185,1717788448162,-396.13241,0.00021916,2]
[328788186,1717788448183,-151.0,0.00021916,2]
[328788187,1717788448204,-396.13241,0.00021916,2]
[328788188,1717788448226,-151.0,0.00021916,2]
[328788189,1717788448247,-151.0,0.00021916,2]
[328788190,1717788448270,-222.868002,0.00021916,2]
[328788191,1717788448291,-151.0,0.00021916,2]
[328788192,1717788448311,-222.868002,0.00021916,2]
[328788193,1717788448333,-500.0,0.00021917,3]
[328788194,1717788448354,-500.0,0.00021917,3]
[328788195,1717788448374,-500.0,0.00021917,3]
[328788196,1717788448396,-500.0,0.00021917,3]
[328788197,1717788448415,-500.0,0.00021917,3]
[328788198,1717788448435,-500.0,0.00021917,3]
[328788199,1717788448456,-500.0,0.00021917,3]
[328788200,1717788448475,-540.77894596,0.00021917,3]
[328788201,1717788448495,-455.71156221,0.00021917,3]
[328788202,1717788448518,-500.0,0.00021917,3]
[328788203,1717788448539,-500.0,0.00021917,3]
[328788204,1717788448562,-500.0,0.00021917,3]
[328788205,1717788448582,-500.0,0.00021917,3]
[328788206,1717788448605,-500.0,0.00021917,3]
[328788207,1717788448624,-500.0,0.00021917,3]
[328788208,1717788448646,-500.0,0.00021917,3]
[328788209,1717788448666,-500.0,0.00021917,3]
[328788210,1717788448686,-479.99970211,0.00021917,3]
[328788211,1717788448707,-500.0,0.00021917,3]
[328788212,1717788448736,-502.83682935,0.00021917,3]
[328788213,1717788448756,-500.0,0.00021917,3]
[328788214,1717788448776,-228.8254904,0.00021917,3]
[328788215,1717788448796,-984.83,0.00021917,3]
[328788216,1717788448817,-500.0,0.00021917,3]
[328788217,1717788448952,-500.0,0.00021917,3]
[328788218,1717788448973,-500.0,0.00021917,3]
[328788219,1717788448993,-510.55424088,0.00021917,3]
[328788220,1717788449014,-500.0,0.00021917,3]
[328788221,1717788449035,-500.0,0.00021917,3]
[328788222,1717788449056,-2200.34,0.00021917,4]
[328788223,1717788449076,-1037.42,0.00021917,3]
[328788224,1717788449096,-500.0,0.00021917,3]
[328788225,1717788449121,-507.45333442,0.00021917,3]
[328788226,1717788449146,-500.0,0.00021917,3]
[328788227,1717788449166,-554.31371067,0.00021917,3]
[328788228,1717788449186,-516.86677249,0.00021917,3]
[328788229,1717788449206,-500.0,0.00021917,3]
[328788230,1717788449226,-500.0,0.00021917,3]
[328788231,1717788449246,-579.25,0.00021917,3]
[328788232,1717788449265,-514.00375075,0.00021917,3]
[328788233,1717788449286,-500.0,0.00021917,3]
[328788234,1717788449305,-500.0,0.00021917,3]
[328788235,1717788449327,-500.0,0.00021917,3]
[328788236,1717788449348,-500.0,0.00021917,3]
[328788237,1717788449368,-500.0,0.00021917,3]
[328788238,1717788449389,-500.0,0.00021917,3]
[328788239,1717788449409,-500.0,0.00021917,3]
[328788240,1717788449431,-500.0,0.00021917,3]
[328788241,1717788449453,-451.37576035,0.00021917,3]
[328788242,1717788449474,-500.0,0.00021917,3]
[328788243,1717788449499,-500.0,0.00021917,3]
[328788244,1717788449523,-500.0,0.00021917,3]
[328788245,1717788449545,-500.0,0.00021917,3]
[328788246,1717788449566,-500.0,0.00021917,3]
[328788247,1717788449588,-500.0,0.00021917,3]
[328788248,1717788449609,-500.0,0.00021917,3]
[328788249,1717788449630,-500.0,0.00021917,3]
[328788250,1717788449653,-500.0,0.00021917,3]
[328788251,1717788449672,-500.0,0.00021917,3]
[328788252,1717788449692,-170.53046433,0.00021917,3]
[328788253,1717788449713,-500.0,0.00021917,3]
[328788254,1717788449734,-504.48394044,0.00021917,3]
[328788255,1717788449754,-500.0,0.00021917,3]
[328788256,1717788449774,-500.0,0.00021917,3]
[328788257,1717788449795,-500.0,0.00021917,3]
[328788258,1717788449818,-500.0,0.00021917,3]
[328788259,1717788449841,-946.61,0.00021917,3]
[328788260,1717788449862,-500.0,0.00021917,3]
[328788261,1717788449883,-626.27,0.00021917,3]
[328788262,1717788449904,-155.45540777,0.00021917,3]
[328788263,1717788449925,-500.0,0.00021917,3]
[328788264,1717788449947,-1000.0,0.00021917,3]
[328788265,1717788449969,-500.0,0.00021917,3]
[328788266,1717788449992,-500.0,0.00021917,3]
[328788267,1717788450015,-503.01251357,0.00021917,3]
[328788268,1717788450037,-500.0,0.00021917,3]
[328788269,1717788450057,-500.0,0.00021917,3]
[328788270,1717788450080,-500.0,0.00021917,3]
[328788271,1717788450102,-500.0,0.00021917,3]
[328788272,1717788450123,-525.64559595,0.00021917,3]
[328788273,1717788450150,-500.0,0.00021917,3]
[328788274,1717788450173,-500.0,0.00021917,3]
[328788275,1717788450193,-500.0,0.00021917,3]
[328788276,1717788450214,-2476.83,0.00021917,3]
[328788277,1717788450243,-500.0,0.00021917,3]
[328788278,1717788450264,-500.0,0.00021917,3]
[328788279,1717788450285,-500.0,0.00021917,3]
[328788280,1717788450305,-500.0,0.00021917,3]
[328788281,1717788450325,-524.51966468,0.00021917,3]
[328788282,1717788450346,-413.85250886,0.00021917,3]
[328788283,1717788450366,-500.0,0.00021917,3]
[328788284,1717788450389,-500.0,0.00021917,3]
[328788285,1717788450409,-500.0,0.00021917,3]
[328788286,1717788450430,-500.0,0.00021917,3]
[328788287,1717788450450,-513.58462249,0.00021917,3]
[328788288,1717788450470,-523.05037696,0.00021917,3]
[328788289,1717788450492,-500.0,0.00021917,3]
[328788290,1717788450517,-500.0,0.00021917,3]
[328788291,1717788450537,-515.66228767,0.00021917,3]
[328788292,1717788450559,-500.0,0.00021917,3]
[328788293,1717788450681,-524.19561139,0.00021917,3]
[328788294,1717788450702,-500.0,0.00021917,3]
[328788295,1717788450727,-500.0,0.00021917,3]
[328788296,1717788450750,-526.81813613,0.00021917,3]
[328788297,1717788450771,-500.0,0.00021917,3]
[328788298,1717788450791,-524.65358724,0.00021917,3]
[328788299,1717788450812,-624.20134511,0.00021917,3]
[328788300,1717788450832,-514.93178048,0.00021917,3]
[328788301,1717788450854,-500.0,0.00021917,3]
[328788302,1717788450875,-503.46,0.00021917,3]
[328788303,1717788450897,-500.0,0.00021917,3]
[328788304,1717788450917,-500.0,0.00021917,3]
[328788305,1717788450938,-500.0,0.00021917,3]
[328788306,1717788450958,-500.0,0.00021917,3]
[328788307,1717788450979,-1697.02,0.00021917,3]
[328788308,1717788451000,-500.0,0.00021917,3]
[328788309,1717788451022,-500.0,0.00021917,3]
[328788310,1717788451043,-500.0,0.00021917,3]
[328788311,1717788451063,-500.0,0.00021917,3]
[328788312,1717788451086,-500.0,0.00021917,3]
[328788313,1717788451108,-500.0,0.00021917,3]
[328788314,1717788451129,-500.0,0.00021917,3]
[328788315,1717788451156,-500.0,0.00021917,3]
[328788316,1717788451178,-500.0,0.00021917,3]
[328788317,1717788451201,-500.0,0.00021917,3]
[328788318,1717788451224,-500.0,0.00021917,3]
[328788319,1717788451245,-500.0,0.00021917,3]
[328788320,1717788451267,-500.0,0.00021917,3]
[328788321,1717788451288,-500.0,0.00021917,3]
[328788322,1717788451309,-502.32803496,0.00021917,3]
[328788323,1717788451331,-518.40557409,0.00021917,3]
[328788324,1717788451353,-500.0,0.00021917,2]
[328788325,1717788451374,-501.04089175,0.00021917,3]
[328788326,1717788451398,-976.26,0.00021917,3]
[328788327,1717788451420,-500.0,0.00021917,3]
[328788328,1717788451441,-888.91,0.00021917,3]
[328788329,1717788451462,-500.0,0.00021917,3]
[328788330,1717788451483,-200.0,0.00021917,3]
[328788331,1717788451504,-500.0,0.00021917,3]
[328788332,1717788451531,-298.32142228,0.00021917,2]
[328788333,1717788451742,-215.8488446,0.00021917,2]
[328788334,1717788451763,-500.0,0.00021917,3]
[328788335,1717788451784,-500.0,0.00021917,3]
[328788336,1717788451805,-500.0,0.00021917,3]
[328788337,1717788451826,-500.0,0.00021917,2]
[328788338,1717788451847,-500.0,0.00021917,3]
[328788339,1717788451868,-500.0,0.00021917,3]
[328788340,1717788451890,-500.0,0.00021917,3]
[328788341,1717788451911,-172.31432061,0.00021917,3]
[328788342,1717788451932,-500.0,0.00021917,3]
[328788343,1717788451952,-500.0,0.00021917,3]
[328788344,1717788451972,-1240.35,0.00021917,3]
[328788345,1717788451992,-500.0,0.00021917,3]
[328788346,1717788452012,-500.0,0.00021917,3]
[328788347,1717788452034,-501.58312469,0.00021917,3]
[328788348,1717788452055,-500.0,0.00021917,3]
[328788349,1717788452076,-500.0,0.00021917,3]
[328788350,1717788452096,-500.0,0.00021917,3]
[328788351,1717788452116,-576.9088755,0.00021917,3]
[328788352,1717788452141,-500.0,0.00021917,3]
[328788353,1717788452162,-524.54708995,0.00021917,3]
[328788354,1717788452183,-500.97625773,0.00021917,3]
[328788355,1717788452204,-500.0,0.00021917,3]
[328788356,1717788452312,-500.0,0.00021917,3]
[328788357,1717788452334,-1622.15,0.00021917,3]
[328788358,1717788452354,-500.0,0.00021917,3]
[328788359,1717788452374,-204.12487719,0.00021917,3]
[328788360,1717788452395,-500.0,0.00021917,3]
[328788361,1717788452416,-500.0,0.00021917,3]
[328788362,1717788452437,-500.0,0.00021917,3]
[328788363,1717788452460,-500.0,0.00021917,3]
[328788364,1717788452480,-500.0,0.00021917,3]
[328788365,1717788452502,-521.81775732,0.00021917,3]
[328788366,1717788452526,-500.0,0.00021917,3]
[328788367,1717788452549,-502.23613531,0.00021917,3]
[328788368,1717788452570,-500.0,0.00021917,3]
[328788369,1717788452590,-500.0,0.00021917,3]
[328788370,1717788452613,-500.0,0.00021917,3]
[328788371,1717788452635,-500.0,0.00021917,3]
[328788372,1717788452658,-500.0,0.00021917,3]
[328788373,1717788452679,-500.0,0.00021917,3]
[328788374,1717788452700,-500.0,0.00021917,3]
[328788375,1717788452721,-500.0,0.00021917,3]
[328788376,1717788452741,-154.67302037,0.00021917,3]
[328788377,1717788452762,-500.0,0.00021917,3]
[328788378,1717788452782,-500.0,0.00021917,3]
[328788379,1717788452804,-500.83396817,0.00021917,3]
[328788380,1717788452825,-730.93,0.00021917,3]
[328788381,1717788452847,-500.0,0.00021917,3]
[328788382,1717788452868,-500.0,0.00021917,3]
[328788383,1717788452890,-500.0,0.00021917,3]
[328788384,1717788452910,-501.24060093,0.00021917,3]
[328788385,1717788452930,-500.0,0.00021917,3]
[328788386,1717788452950,-631.85,0.00021917,3]
[328788387,1717788452971,-512.10173169,0.00021917,3]
[328788388,1717788452991,-208.71152214,0.00021917,3]
[328788389,1717788453012,-500.0,0.00021917,3]
[328788390,1717788453032,-501.93033566,0.00021917,3]
[328788391,1717788453053,-500.0,0.00021917,3]
[328788392,1717788453074,-500.0,0.00021917,3]
[328788393,1717788453095,-500.0,0.00021917,2]